bitfinex-derivatives/quotes_SOLF0:USTF0_20250127
["timestamp","ask_amount","ask_price","bid_price","bid_amount"]
[1738005854721,0.0331523,227.63,227.58,0.03213386]
[1738005856119,0.0331523,227.63,227.58,4.42803386]
[1738005856719,0.0331523,227.63,227.58,0.03213386]
[1738005860421,0.0331523,227.63,227.62,4.3953]
[1738005866827,9.31553773,227.85,227.74,4.393]
[1738005867027,9.31553773,227.85,227.65,16.3192878]
[1738005867726,16.3192878,227.86,227.73,4.3931]
[1738005867919,0.03305719,227.77,227.73,0.03256938]
[1738005868122,4.3915,227.82,227.74,4.393]
[1738005868422,0.02933914,227.77,227.73,0.03256938]
[1738005868624,4.3913,227.83,227.73,0.03256938]
[1738005868820,16.3192878,227.86,227.73,0.03256938]
[1738005868821,0.02796474,227.77,227.73,0.03256938]
[1738005869023,16.3192878,227.86,227.73,0.03256938]
[1738005869226,0.03015839,227.77,227.73,0.03256938]
[1738005869425,16.3192878,227.86,227.73,0.03256938]
[1738005869621,0.02957841,227.77,227.73,0.03256938]
[1738005869827,2.7732,227.89,227.73,0.03256938]
[1738005870128,4.3903,227.88,227.68,16.3192878]
[1738005870324,0.02784375,227.83,227.79,0.03014847]
[1738005872728,0.02784375,227.83,227.79,4.42204847]
[1738005873233,0.02784375,227.83,227.8,4.3918]
[1738005873933,0.02784375,227.83,227.79,0.03014847]
[1738005873934,0.02784375,227.83,227.82,4.3915]
[1738005875028,0.02784375,227.83,227.79,0.03014847]
[1738005875029,8.7716,228.12,227.93,4.3892]
[1738005875228,8.7716,228.12,227.72,16.3192878]
[1738005875229,2.741,228.01,227.85,16.3192878]
[1738005875928,16.3192878,227.95,227.73,1.4074]
[1738005876233,0.03138744,227.86,227.82,0.03228764]
[1738005876434,19.6392878,227.95,227.82,0.03228764]
[1738005876628,0.03065152,227.86,227.82,0.03228764]
[1738005876826,19.6392878,227.95,227.82,0.03228764]
[1738005877029,0.03047339,227.86,227.68,16.3192878]
[1738005877226,16.3192878,227.91,227.68,16.3192878]
[1738005877227,4.3908,227.87,227.78,4.3925]
[1738005877832,4.391,227.85,227.77,4.3925]
[1738005878027,16.3192878,227.95,227.73,16.3192878]
[1738005878228,16.3192878,227.95,227.77,16.3192878]
[1738005878229,1.3424,227.94,227.77,16.3192878]
[1738005879037,1.3424,227.94,227.85,4.3906]
[1738005879535,0.03153228,227.92,227.87,0.033397]
[1738005882731,0.03153228,227.92,227.88,4.3902]
[1738005882933,1.3424,227.94,227.87,0.033397]
[1738005883133,9.2310692,228.18,227.87,0.033397]
[1738005883134,16.3192878,228.14,227.9,16.3192878]
[1738005883332,2.7128,228.1,227.97,4.3885]
[1738005883540,1.3449,228.09,227.9,16.3192878]
[1738005884234,0.02347003,228.02,227.97,0.02906912]
[1738005884432,0.02347003,228.02,227.98,4.3884]
[1738005884633,0.02347003,228.02,227.97,0.02906912]
[1738005889144,0.02347003,228.02,227.97,4.41766912]
[1738005889339,0.02347003,228.02,227.97,0.02906912]
[1738005890938,0.02347003,228.02,227.98,4.3883]
[1738005891240,0.02347003,228.02,227.97,0.02906912]
[1738005891941,0.02347003,228.02,227.98,4.3883]
[1738005892339,0.02347003,228.02,227.97,0.02906912]
[1738005893138,0.02347003,228.02,227.97,4.41766912]
[1738005893342,0.02347003,228.02,227.97,0.02906912]
[1738005894639,0.02347003,228.02,228.01,4.3879]
[1738005896340,0.02347003,228.02,227.97,0.02906912]
[1738005898247,0.02347003,228.02,227.97,4.41776912]
[1738005898644,0.02347003,228.02,227.97,0.02906912]
[1738005900645,0.02347003,228.02,227.97,4.41776912]
[1738005900846,4.41127003,228.02,227.87,16.3192878]
[1738005901046,4.3878,228.02,227.83,0.3682]
[1738005901849,4.3878,228.02,227.94,4.3891]
[1738005902045,0.02894193,227.95,227.94,4.3891]
[1738005902240,4.3878,228.02,227.94,4.3891]
[1738005902553,0.02905987,227.97,227.96,4.3889]
[1738005902751,4.16651952,228.08,227.89,16.3192878]
[1738005902944,0.03380173,227.97,227.94,0.03075973]
[1738005903145,4.387,228.06,227.89,16.3192878]
[1738005903442,0.03192848,227.95,227.93,0.02957442]
[1738005903748,4.387,228.06,227.93,0.02957442]
[1738005904245,0.02927156,228.02,227.93,0.02957442]
[1738005904748,0.02927156,228.02,227.93,10.19186462]
[1738005905649,0.02927156,228.02,227.99,4.3881]
[1738005905848,0.02927156,228.02,227.93,10.1622902]
[1738005906048,0.02927156,228.02,227.98,0.02812129]
[1738005909746,4.41707156,228.02,227.98,0.02812129]
[1738005910450,0.02927156,228.02,227.98,0.02812129]
[1738005911448,0.02927156,228.02,227.87,10.1622902]
[1738005911650,10.1622902,228.0,227.83,10.5304902]
[1738005911852,4.3883,227.99,227.92,4.3896]
[1738005912052,4.3883,227.99,227.82,1.3511]
[1738005912053,10.1622902,227.96,227.82,1.3511]
[1738005912654,0.03346801,227.91,227.87,0.030465]
[1738005913045,0.03346801,227.91,227.89,4.3902]
[1738005913345,0.03346801,227.91,227.87,0.030465]
[1738005914552,0.03346801,227.91,227.87,4.420965]
[1738005914855,10.1622902,227.9,227.71,181.1187846]
[1738005915051,10.1622902,227.83,227.77,4.3925]
[1738005915248,11.4970902,227.92,227.76,10.1622902]
[1738005915652,1.3348,227.92,227.79,10.1622902]
[1738005915955,0.02779636,227.88,227.83,0.03062355]
[1738005916955,0.02779636,227.88,227.87,4.3906]
[1738005918351,4.408,228.16,227.83,0.03062355]
[1738005918352,16.27700448,228.07,227.85,16.27700448]
[1738005918549,19.17300448,228.07,227.85,16.27700448]
[1738005919254,19.17300448,228.07,227.99,4.3883]
[1738005919761,0.02999597,228.05,227.99,4.3883]
[1738005920057,0.02999597,228.05,228.01,0.0310393]
[1738005920354,19.17300448,228.07,227.81,16.27700448]
[1738005920558,19.17300448,228.07,228.01,0.03245056]
[1738005920559,0.02895725,228.05,228.01,0.03245056]
[1738005920757,19.17300448,228.07,227.81,16.27700448]
[1738005920957,0.03182883,228.05,227.81,16.27700448]
[1738005921158,17.73220448,228.07,227.81,16.27700448]
[1738005921660,1.4235,228.06,227.81,16.27700448]
[1738005921857,1.4235,228.06,227.87,16.27700448]
[1738005922156,0.03348025,227.99,227.94,0.02770351]
[1738005922751,0.03348025,227.99,227.98,4.3885]
[1738005922953,0.03348025,227.99,227.94,0.02770351]
[1738005922954,16.31048473,227.99,227.94,0.02770351]
[1738005923158,16.31048473,227.99,227.79,2.782]
[1738005923356,1.3784,227.98,227.79,2.782]
[1738005923955,1.3784,227.98,227.9,4.3899]
[1738005924151,1.3784,227.98,227.79,2.782]
[1738005924352,0.03339559,227.96,227.92,0.02850588]
[1738005924657,0.03302208,227.96,227.92,0.02770148]
[1738005925457,0.03302208,227.96,227.95,4.3891]
[1738005925852,2.208e-05,227.96,227.95,4.3891]
[1738005926152,17.73220448,228.07,227.92,0.02770148]
[1738005926353,17.73220448,228.07,227.9,1.3411]
[1738005927162,0.02908807,228.0,227.96,0.0282372]
[1738005927862,0.02908807,228.0,227.99,4.3883]
[1738005928263,0.02908807,228.0,227.96,0.0282372]
[1738005928562,0.02908807,228.0,227.98,4.3885]
[1738005929360,0.02908807,228.0,227.96,0.0282372]
[1738005929964,0.02908807,228.0,227.98,4.3885]
[1738005931161,0.02908807,228.0,227.97,4.3887]
[1738005931365,0.02908807,228.0,227.96,0.0282372]
[1738005931665,16.27700448,227.99,227.96,0.0282372]
[1738005932867,16.27700448,227.99,227.82,1.4268]
[1738005933069,16.27700448,227.95,227.79,1.3999]
[1738005933469,16.27700448,227.99,227.81,16.27700448]
[1738005933962,15.87233448,227.99,227.91,4.3896]
[1738005934164,0.03280024,227.92,227.91,4.3896]
[1738005934365,15.87233448,227.99,227.82,1.3678]
[1738005934561,0.03310086,227.97,227.94,4.3894]
[1738005935364,0.03310086,227.97,227.93,0.03343013]
[1738005936268,16.27700448,227.95,227.79,1.3999]
[1738005936468,4.3897,227.92,227.84,4.391]
[1738005936669,1.3688,227.94,227.79,1.3999]
[1738005936965,1.3688,227.94,227.75,1.4381]
[1738005936966,16.27700448,227.91,227.75,1.4381]
[1738005937372,0.03092095,227.85,227.81,0.03044788]
[1738005937970,16.27700448,227.83,227.7,2.7042]
[1738005938472,16.27700448,227.83,227.72,4.3933]
[1738005938770,16.27700448,227.79,227.62,1.3221]
[1738005939173,0.03223659,227.73,227.68,0.02772655]
[1738005939470,16.27700448,227.83,227.62,1.3221]
[1738005939772,0.02971816,227.73,227.71,4.3936]
[1738005939969,0.02971816,227.73,227.68,0.0308382]
[1738005940272,0.02886695,227.73,227.7,0.02902316]
[1738005940469,0.02886695,227.73,227.62,1.3221]
[1738005940670,0.02886695,227.73,227.7,4.3938]
[1738005940871,0.02886695,227.73,227.69,0.02815526]
[1738005941969,0.02886695,227.73,227.69,4.42205526]
[1738005942371,0.02886695,227.73,227.69,0.02815526]
[1738005944966,0.02886695,227.73,227.72,4.3935]
[1738005947769,1.3609,227.83,227.76,4.3927]
[1738005947969,1.3609,227.83,227.63,16.27700448]
[1738005948978,1.3609,227.83,227.76,4.3926]
[1738005949372,0.02986282,227.81,227.77,0.02908379]
[1738005949579,0.02986282,227.81,227.79,4.3922]
[1738005950672,0.02986282,227.81,227.8,4.392]
[1738005954073,16.3068673,227.81,227.77,0.02908379]
[1738005954274,20.6986673,227.81,227.77,0.02908379]
[1738005954680,16.3068673,227.81,227.77,0.02908379]
[1738005954880,20.6986673,227.81,227.77,0.02908379]
[1738005955382,4.3924,227.78,227.63,1.3695]
[1738005955683,16.27700448,227.81,227.63,1.3695]
[1738005955883,4.392,227.8,227.72,4.3934]
[1738005956485,0.03341257,227.78,227.74,0.02952989]
[1738005960581,0.03341257,227.78,227.75,4.3929]
[1738005961186,0.03341257,227.78,227.74,0.02952989]
[1738005961586,16.27700448,227.77,227.74,0.02952989]
[1738005962384,16.27700448,227.77,227.7,4.3939]
[1738005962589,4.3927,227.76,227.68,4.3941]
[1738005962789,17.60230448,227.77,227.61,1.3643]
[1738005963193,4.3928,227.76,227.68,4.3942]
[1738005963587,0.03130458,227.74,227.7,0.0292811]
[1738005963784,16.27700448,227.73,227.7,0.0292811]
[1738005964096,16.27700448,227.65,227.49,1.9933]
[1738005964291,20.67190448,227.65,227.53,4.397]
[1738005964491,20.67190448,227.65,227.49,1.9933]
[1738005964695,16.27700448,227.65,227.49,1.4395]
[1738005964988,0.02834586,227.59,227.44,181.1187846]
[1738005965596,0.02834586,227.59,227.5,0.03255711]
[1738005965892,16.27700448,227.57,227.44,181.1187846]
[1738005966091,2.8548,227.56,227.44,181.1187846]
[1738005966699,2.8548,227.56,227.44,4.3988]
[1738005966997,2.8548,227.56,227.37,0.5538]
[1738005967297,0.03348024,227.52,227.48,0.03171616]
[1738005968898,0.03348024,227.52,227.5,4.3977]
[1738005969098,16.27700448,227.65,227.48,0.03171616]
[1738005969293,6.0616,227.67,227.48,16.27700448]
[1738005969500,6.0616,227.67,227.58,4.3961]
[1738005970296,0.03139953,227.65,227.6,0.02983468]
[1738005970495,6.0616,227.67,227.59,4.396]
[1738005970695,0.0306596,227.65,227.59,4.396]
[1738005970902,0.0306596,227.65,227.6,0.02912432]
[1738005971499,16.30766408,227.65,227.6,0.02912432]
[1738005971799,16.30766408,227.65,227.46,0.5885]
[1738005972103,4.3955,227.62,227.45,2.7295]
[1738005972301,16.27700448,227.65,227.45,2.7295]
[1738005972603,16.27700448,227.65,227.54,4.3971]
[1738005972800,0.03291348,227.57,227.54,4.3971]
[1738005973098,0.02909193,227.58,227.54,4.3971]
[1738005975501,0.02909193,227.58,227.53,0.03007226]
[1738005976608,0.02909193,227.58,227.57,4.3964]
[1738005977103,0.02909193,227.58,227.56,4.3968]
[1738005977303,0.02909193,227.58,227.53,0.03007226]
[1738005979413,4.3932,227.74,227.65,4.3947]
[1738005979711,4.0597,227.77,227.64,16.27700448]
[1738005979904,1.3459,227.77,227.75,4.3928]
[1738005980302,1.3459,227.77,227.65,1.3786]
[1738005980510,1.3459,227.77,227.74,0.02779069]
[1738005980707,1.3459,227.77,227.72,4.3934]
[1738005980906,1.3459,227.77,227.73,0.02942921]
[1738005981409,1.37857887,227.77,227.73,0.02942921]
[1738005981609,0.03267887,227.77,227.73,0.02942921]
[1738005981805,0.03267887,227.77,227.75,4.3929]
[1738005982309,0.03267887,227.77,227.73,0.02942921]
[1738005982507,0.03267887,227.77,227.73,4.42262921]
[1738005982704,0.03267887,227.77,227.73,0.02942921]
[1738005982909,0.39807,227.85,227.73,0.02942921]
[1738005983209,0.39807,227.85,227.8,4.3918]
[1738005983413,0.39807,227.85,227.72,16.27700448]
[1738005984110,0.02996201,227.81,227.76,0.0313169]
[1738005984812,0.02996201,227.81,227.77,4.3925]
[1738005985411,0.02996201,227.81,227.76,0.0313169]
[1738005989814,4.42176201,227.81,227.76,0.0313169]
[1738005991915,4.3922,227.79,227.76,0.0313169]
[1738005992113,1.3198,227.8,227.76,0.0313169]
[1738005992314,4.3925,227.78,227.76,0.0313169]
[1738005992514,1.3198,227.8,227.76,0.0313169]
[1738005992715,2.7109,227.8,227.76,0.0313169]
[1738005993015,4.3926,227.77,227.76,0.0313169]
[1738005993820,4.3926,227.77,227.69,4.3939]
[1738005994914,0.03298433,227.75,227.71,0.03170615]
[1738005996715,4.3933,227.74,227.71,0.03170615]
[1738005996919,0.03298433,227.75,227.71,0.03170615]
[1738005998015,0.03298433,227.75,227.73,4.3931]
[1738005998220,0.03298433,227.75,227.71,0.03170615]
[1738005998922,4.42608433,227.75,227.71,0.03170615]
[1738005999126,0.03298433,227.75,227.71,0.03170615]
[1738005999823,4.3932,227.74,227.71,0.03170615]
[1738006000018,0.03298433,227.75,227.71,0.03170615]
[1738006000620,0.03298433,227.75,227.72,4.3935]
[1738006001720,0.03298433,227.75,227.73,4.3933]
[1738006002927,0.03298433,227.75,227.72,4.3935]
[1738006003223,0.03298433,227.75,227.71,0.03170615]
[1738006003623,0.03298433,227.75,227.73,4.3932]
[1738006004223,0.03298433,227.75,227.74,4.3931]
[1738006008216,0.39807,227.85,227.71,0.03170615]
[1738006008422,0.39807,227.85,227.7,16.27700448]
[1738006009220,0.39807,227.85,227.74,16.27700448]
[1738006009422,0.02789257,227.8,227.75,0.03003133]
[1738006009625,0.39807,227.85,227.75,0.03003133]
[1738006010516,0.39807,227.85,227.81,4.3916]
[1738006010918,0.39807,227.85,227.81,0.03203186]
[1738006010919,0.42983037,227.85,227.81,0.03203186]
[1738006011228,0.42983037,227.85,227.82,4.3916]
[1738006011424,4.82083037,227.85,227.81,0.03203186]
[1738006011723,0.42983037,227.85,227.81,0.03203186]
[1738006012627,4.3916,227.82,227.81,0.03203186]
[1738006013731,4.3912,227.84,227.81,0.03203186]
[1738006015131,1.4263,227.84,227.81,0.03203186]
[1738006015426,2.7851,227.84,227.81,0.03203186]
[1738006015729,4.3916,227.82,227.81,0.03203186]
[1738006016227,1.3588,227.84,227.81,0.03203186]
[1738006016932,5.7501,227.84,227.81,0.03203186]
[1738006017332,1.3588,227.84,227.81,0.03203186]
[1738006018232,5.75,227.84,227.81,0.03203186]
[1738006019633,5.75,227.84,227.62,16.27700448]
[1738006019634,16.27700448,227.82,227.62,16.27700448]
[1738006020128,1.3588,227.84,227.67,16.27700448]
[1738006020336,1.3588,227.84,227.63,25.06730448]
[1738006020730,0.02973261,227.76,227.74,4.393]
[1738006020935,4.3918,227.81,227.74,4.393]
[1738006021127,0.03318788,227.77,227.74,4.393]
[1738006021435,0.03318788,227.77,227.73,4.42411668]
[1738006022034,0.03318788,227.77,227.73,0.03081668]
[1738006023527,4.3931,227.74,227.61,1.363]
[1738006023729,16.27700448,227.78,227.61,1.363]
[1738006024135,1.3357,227.81,227.61,1.363]
[1738006024538,4.3922,227.79,227.61,1.363]
[1738006024732,0.03356983,227.73,227.69,0.03025743]
[1738006025035,0.03356983,227.73,227.71,4.3935]
[1738006025434,0.03356983,227.73,227.69,0.03025743]
[1738006025628,0.03356983,227.73,227.71,4.3937]
[1738006026031,0.03356983,227.73,227.69,0.03025743]
[1738006027133,0.03356983,227.73,227.71,4.3936]
[1738006027730,0.03356983,227.73,227.69,0.03025743]
[1738006032139,16.31057431,227.73,227.6,3.9424378]
[1738006032443,16.27700448,227.67,227.48,16.27700448]
[1738006032641,16.27700448,227.67,227.56,4.3965]
[1738006032642,4.3949,227.65,227.56,4.3965]
[1738006032837,16.27700448,227.63,227.46,3.5018]
[1738006033446,0.03026415,227.57,227.52,0.03367259]
[1738006033943,0.03026415,227.57,227.56,4.3966]
[1738006035044,0.03026415,227.57,227.54,4.3969]
[1738006035249,0.03026415,227.57,227.52,0.03367259]
[1738006036242,0.03026415,227.57,227.53,4.3971]
[1738006036445,0.03026415,227.57,227.52,0.03367259]
[1738006037040,4.3966,227.56,227.52,0.03367259]
[1738006037241,5.7872,227.56,227.52,0.03367259]
[1738006037642,1.3906,227.56,227.52,0.03367259]
[1738006037842,0.03026415,227.57,227.52,0.03367259]
[1738006038047,0.03026415,227.57,227.56,4.3966]
[1738006038648,1.3414,227.64,227.6,4.3958]
[1738006038840,1.3414,227.64,227.49,10.19935025]
[1738006039346,1.3414,227.64,227.6,4.3957]
[1738006039753,1.37490964,227.64,227.6,4.42473433]
[1738006040242,1.37490964,227.64,227.61,4.3956]
[1738006040243,0.03350964,227.64,227.61,4.3956]
[1738006040846,0.03350964,227.64,227.6,0.02903433]
[1738006042452,0.03350964,227.64,227.42,8.7983]
[1738006042453,10.19935025,227.62,227.46,10.19935025]
[1738006042858,10.19935025,227.59,227.47,4.3982]
[1738006043152,10.19935025,227.59,227.43,10.19935025]
[1738006043655,0.02828763,227.53,227.49,0.02896652]
[1738006044554,0.02828763,227.53,227.52,4.3974]
[1738006045054,8.763e-05,227.53,227.52,4.3974]
[1738006046554,8.763e-05,227.53,227.49,0.02896652]
[1738006046955,8.763e-05,227.53,227.49,10.22831677]
[1738006047461,8.763e-05,227.53,227.52,4.3974]
[1738006055658,8.763e-05,227.53,227.49,0.02896652]
[1738006056261,8.763e-05,227.53,227.52,4.3974]
[1738006059663,1.3953,227.69,227.5,10.19935025]
[1738006059866,10.19935025,227.78,227.63,10.19935025]
[1738006060365,1.434,227.79,227.71,4.3935]
[1738006060561,10.19935025,227.78,227.63,10.19935025]
[1738006060762,10.19935025,227.78,227.6,10.19935025]
[1738006060962,4.3931,227.74,227.6,10.19935025]
[1738006061266,10.19935025,227.72,227.62,4.3953]
[1738006061562,4.3943,227.68,227.54,10.19935025]
[1738006061768,4.3943,227.68,227.6,4.3958]
[1738006061966,10.19935025,227.69,227.54,10.19935025]
[1738006062166,0.02774133,227.66,227.62,0.0284009]
[1738006063165,0.02774133,227.66,227.62,4.4239009]
[1738006063563,0.02774133,227.66,227.62,0.0284009]
[1738006064258,0.02774133,227.66,227.63,4.3952]
[1738006064666,0.02774133,227.66,227.62,0.0284009]
[1738006065965,4.42264133,227.66,227.62,0.0284009]
[1738006066267,0.02774133,227.66,227.51,42.91177933]
[1738006066563,17.64301261,227.68,227.51,42.91177933]
[1738006066870,16.31311261,227.64,227.51,42.91177933]
[1738006067374,4.42572614,227.6,227.55,0.02951835]
[1738006067767,16.34293875,227.6,227.55,0.02951835]
[1738006068062,16.31311261,227.56,227.4,3.3342]
[1738006068270,1.3299,227.55,227.4,3.3342]
[1738006068470,4.397,227.54,227.46,4.3984]
[1738006068970,0.03287323,227.52,227.48,0.02989367]
[1738006071170,16.34598584,227.52,227.48,0.02989367]
[1738006071467,16.34598584,227.52,227.32,1.3336]
[1738006071674,16.31311261,227.48,227.32,1.3336]
[1738006071871,20.71131261,227.48,227.36,4.4003]
[1738006072074,16.31311261,227.48,227.32,1.3336]
[1738006072372,4.399,227.44,227.36,4.4003]
[1738006072572,4.399,227.44,227.38,0.0332563]
[1738006072573,0.0299437,227.42,227.38,0.0332563]
[1738006073473,0.0299437,227.42,227.41,4.3995]
[1738006073865,4.37e-05,227.42,227.41,4.3995]
[1738006076771,4.37e-05,227.42,227.38,0.0332563]
[1738006077678,4.37e-05,227.42,227.41,4.3995]
[1738006083082,1.3944,227.53,227.41,16.31311261]
[1738006083381,0.40684,227.54,227.41,16.31311261]
[1738006083579,0.40684,227.54,227.45,16.31311261]
[1738006083786,0.40684,227.54,227.53,4.3972]
[1738006085681,0.40684,227.54,227.51,4.42955345]
[1738006085879,0.40684,227.54,227.27,16.31311261]
[1738006085880,16.31311261,227.52,227.27,16.31311261]
[1738006086081,1.3287,227.51,227.32,16.31311261]
[1738006086287,1.3287,227.51,227.45,4.3987]
[1738006087079,0.02919304,227.5,227.46,4.4307325]
[1738006087279,0.40684,227.54,227.4,16.31311261]
[1738006087480,0.02851821,227.5,227.46,0.0313555]
[1738006087686,0.02851821,227.5,227.49,4.398]
[1738006089083,1.821e-05,227.5,227.49,4.398]
[1738006090989,5.821e-05,227.54,227.53,4.3972]
[1738006093287,0.03333789,227.56,227.51,0.02807031]
[1738006093691,16.31311261,227.55,227.51,0.02807031]
[1738006093994,1.436,227.54,227.51,0.02807031]
[1738006097696,16.31311261,227.55,227.51,0.02807031]
[1738006097992,16.31311261,227.55,227.52,4.3972]
[1738006098295,16.31311261,227.55,227.51,0.02807031]
[1738006099088,16.31311261,227.55,227.51,4.42567031]
[1738006100497,16.31311261,227.55,227.51,0.02807031]
[1738006101796,16.31311261,227.55,227.51,4.42547031]
[1738006101997,16.31311261,227.55,227.51,0.02807031]
[1738006102892,16.31311261,227.55,227.51,4.42557031]
[1738006103599,16.31311261,227.55,227.51,0.02807031]
[1738006108091,4.397,227.54,227.51,0.02807031]
[1738006108493,16.31311261,227.55,227.51,0.02807031]
[1738006108699,10.21278955,227.52,227.37,8.8004]
[1738006109090,10.21278955,227.52,227.41,4.3994]
[1738006109297,10.21278955,227.52,227.37,8.8004]
[1738006109799,10.21278955,227.52,227.47,4.3983]
[1738006110001,10.21278955,227.49,227.47,4.3983]
[1738006110201,10.21278955,227.49,227.47,4.43033699]
[1738006110801,10.24051412,227.52,227.5,4.3977]
[1738006111193,14.63791412,227.52,227.47,4.43033699]
[1738006111891,10.24051412,227.52,227.47,0.03203699]
[1738006112295,10.24051412,227.52,227.49,4.398]
[1738006113901,10.24051412,227.52,227.47,0.03203699]
[1738006114704,10.21278955,227.49,227.47,0.03203699]
[1738006115909,10.24051412,227.52,227.47,0.03203699]
[1738006117198,10.24051412,227.52,227.48,4.3982]
[1738006120007,10.24051412,227.52,227.5,4.3978]
[1738006120403,10.24051412,227.52,227.47,0.03203699]
[1738006120806,10.24051412,227.52,227.5,4.3978]
[1738006121308,10.24051412,227.52,227.47,0.03203699]
[1738006121511,10.24051412,227.52,227.49,4.398]
[1738006122905,0.02772457,227.52,227.47,0.03203699]
[1738006123109,0.02772457,227.52,227.51,4.3976]
[1738006123313,2.457e-05,227.52,227.51,4.3976]
[1738006127519,2.457e-05,227.52,227.49,4.3979]
[1738006127724,2.457e-05,227.52,227.47,0.03203699]
[1738006127921,2.457e-05,227.52,227.51,4.3977]
[1738006129723,2.457e-05,227.52,227.47,0.03203699]
[1738006129924,10.21278955,227.49,227.47,0.03203699]
[1738006130129,10.21281412,227.52,227.47,0.03203699]
[1738006130731,2.457e-05,227.52,227.47,0.03203699]
[1738006131424,2.457e-05,227.52,227.51,4.3976]
[1738006132329,2.457e-05,227.52,227.47,0.03203699]
[1738006132631,10.21278955,227.49,227.47,0.03203699]
[1738006132931,10.21281412,227.52,227.51,4.3976]
[1738006133230,2.457e-05,227.52,227.47,0.03203699]
[1738006133728,2.457e-05,227.52,227.5,4.3976]
[1738006135126,10.21281412,227.52,227.5,4.3976]
[1738006135732,10.21281412,227.52,227.47,0.03203699]
[1738006136622,10.21281412,227.52,227.47,4.43023699]
[1738006137222,10.21281412,227.52,227.47,0.03203699]
[1738006137527,10.21281412,227.52,227.48,4.3982]
[1738006141333,10.21281412,227.52,227.47,0.03203699]
[1738006142331,14.61031412,227.52,227.47,0.03203699]
[1738006142632,10.21281412,227.52,227.47,0.03203699]
[1738006142833,2.457e-05,227.52,227.47,0.03203699]
[1738006143927,2.457e-05,227.52,227.5,4.3977]
[1738006145034,2.457e-05,227.52,227.51,4.3976]
[1738006145833,2.457e-05,227.52,227.47,0.03203699]
[1738006146035,10.21281412,227.52,227.47,0.03203699]
[1738006146235,10.21278955,227.49,227.47,0.03203699]
[1738006148831,10.21278955,227.49,227.42,4.3992]
[1738006149033,10.21278955,227.43,227.33,4.33811761]
[1738006149239,10.21278955,227.34,227.28,181.1187846]
[1738006149437,10.21278955,227.31,227.28,181.1187846]
[1738006150634,0.03308487,227.32,227.28,181.1187846]
[1738006150836,0.03308487,227.32,227.27,0.0334672]
[1738006151139,8.487e-05,227.32,227.27,0.0334672]
[1738006151334,8.487e-05,227.32,227.31,4.4015]
[1738006152034,8.487e-05,227.32,227.31,14.61428955]
[1738006152331,1.4545,227.47,227.31,10.21278955]
[1738006152933,1.4545,227.47,227.34,10.21278955]
[1738006153339,0.03038906,227.43,227.38,0.02885018]
[1738006154440,0.03038906,227.43,227.42,4.3994]
[1738006156940,2.6943,227.54,227.38,0.02885018]
[1738006157135,2.6943,227.54,227.52,4.3974]
[1738006157333,1.4497,227.58,227.41,16.34563247]
[1738006157735,1.4497,227.58,227.55,4.3968]
[1738006157939,1.4497,227.58,227.41,16.34563247]
[1738006158235,0.03132376,227.59,227.58,4.3963]
[1738006158440,1.3663,227.68,227.53,16.34563247]
[1738006158740,1.3663,227.68,227.57,4.3964]
[1738006158942,17.67713247,227.71,227.53,16.34563247]
[1738006159139,75.44,227.77,227.53,16.34563247]
[1738006159140,16.34563247,227.75,227.53,16.34563247]
[1738006159441,0.02925333,227.66,227.62,0.03060546]
[1738006159636,16.34563247,227.75,227.62,0.03060546]
[1738006160137,0.03281864,227.71,227.62,0.03060546]
[1738006160342,0.03281864,227.71,227.57,16.34563247]
[1738006160545,2.7369,227.79,227.64,0.03281404]
[1738006160843,2.7369,227.79,227.61,16.34563247]
[1738006161043,1.3663,227.8,227.62,1.3578]
[1738006161945,0.03351959,227.73,227.69,0.03328169]
[1738006163546,0.03351959,227.73,227.71,4.3937]
[1738006166251,0.03351959,227.73,227.69,0.03328169]
[1738006167051,0.03351959,227.73,227.72,4.3936]
[1738006168449,0.03351959,227.73,227.69,0.03328169]
[1738006168953,4.3936,227.72,227.69,0.03328169]
[1738006169345,16.37915206,227.73,227.69,0.03328169]
[1738006170151,4.3939,227.71,227.69,0.03328169]
[1738006170346,16.37915206,227.73,227.57,2.6841]
[1738006170546,20.73983247,227.69,227.56,40.75025115]
[1738006170849,20.73983247,227.69,227.5,0.7719]
[1738006170850,16.34563247,227.61,227.48,1.4167]
[1738006171244,16.34563247,227.61,227.44,1.3164]
[1738006171552,0.03352179,227.55,227.5,0.03208989]
[1738006172157,0.03352179,227.55,227.54,4.397]
[1738006176261,0.03352179,227.55,227.5,0.03208989]
[1738006176659,0.03352179,227.55,227.51,4.3976]
[1738006176860,0.03352179,227.55,227.5,0.03208989]
[1738006177255,2.179e-05,227.55,227.54,4.397]
[1738006179562,4.3937,227.72,227.67,4.3943]
[1738006179762,19.56563247,227.73,227.54,0.8071]
[1738006179959,16.34563247,227.73,227.54,0.8071]